{"text_format":"1","workbook":"xlsx","n_sheets":5,"sheets":["Hoja1"," COMPLEMENTO","pares puesto","otra hoja","Hoja3"],"not_rendered":{"charts":0,"images":0,"macros":1,"external_links":0,"defined_names":1,"comments":0,"pivot_tables":0},"unopened":[],"bounds":{"document_bytes":16777216,"sheet_cells":100000,"rows_first":2000,"rows_last":500,"rows_between":2000,"halvings":0,"cell_chars":16384,"cell_head_chars":4096},"cells_cut":0,"cells_raw":0,"read":"whole","date_system":"1900"}

{"sheet":"Hoja1","index":0,"n_rows":17,"n_cols":14,"rows_kept":17,"cut":false,"hidden":false,"merged":[]}
["fecha","numero",null,0,1,2,3,4,5,6,7,8,9,"buscar por fecha"]
["2011-02-03","0122",null,"1090","1214","0122","9339","4545","5725","6677","3757","0588","9339"]
["2011-02-03","0588",null,null,"3171",null,null,null,"4545",null,"6677"]
["2011-02-07","3757",null,null,null,null,null,null,null,null,null,null,null,"Digitos"]
["2011-02-24","4352",null,null,null,null,null,null,null,null,null,null,null,4]
["2011-03-02","4986"]
["2011-05-10","1214"]
["2011-05-10","1090"]
["2011-05-10","3171"]
["2011-08-13","5608"]
["2011-08-20","2354"]
["2011-09-29","5725"]
["2011-12-29","9339"]
["2011-12-29","5971"]
["2011-12-29","5197"]
["2011-12-29","4545"]
["2011-12-29","6677"]

{"sheet":" COMPLEMENTO","index":1,"n_rows":104,"n_cols":50,"rows_kept":104,"cut":false,"hidden":false,"merged":[]}
[]
["FALTAN POR SALIR ",{"$f":"COUNTBLANK(B4:B103)","v":92},{"$f":"COUNTBLANK(C4:C103)","v":91},93,93,86,97,91,92,94,94,{"$f":"COUNTIF(L4:L103,L1)","v":45},null,null,null,null,null,null,null,null,null,null,null,{"$f":"COUNTIF(X4:X103,X1)","v":67},null,null,null,null,null,null,null,null,null,null,null,null,{"$f":"COUNTIF(AK4:AK103,AK1)","v":73},null,null,null,null,null,null,null,null,null,null,null,null,{"$f":"COUNTIF(AX4:AX103,AX1)","v":91}]
["GENERAL","1","2","3","4","5","6","7","8","9","0","TOTAL","ENERO","1","2","3","4","5","6","7","8","9","0","TOTAL",null,"FEBRERO","1","2","3","4","5","6","7","8","9","0","TOTAL",null,"MARZO","1","2","3","4","5","6","7","8","9","0","TOTAL"]
["00",1,null,null,null,null,null,null,null,null,null,{"$f":"SUM(B4:K4)","v":1},"00",1,null,null,null,null,null,null,null,null,null,{"$f":"SUM(N4:W4)","v":1},null,"00",null,null,null,null,null,null,null,null,null,null,{"$f":"SUM(AA4:AJ4)","v":0},null,"00",null,null,null,null,null,null,null,null,null,null,{"$f":"SUM(AN4:AW4)","v":0}]
["01",null,null,2,null,1,null,1,null,null,null,{"$f":"SUM(B5:K5)","v":4},"01",null,null,1,null,null,null,null,null,null,null,{"$f":"SUM(N5:W5)","v":1},null,"01",null,null,1,null,1,null,1,null,null,null,{"$f":"SUM(AA5:AJ5)","v":3},null,"01",null,null,null,null,null,null,null,null,null,null,{"$f":"SUM(AN5:AW5)","v":0}]
["02",null,null,null,1,null,null,null,null,null,null,1,"02",null,null,null,null,null,null,null,null,null,null,0,null,"02",null,null,null,1,null,null,null,null,null,null,1,null,"02",null,null,null,null,null,null,null,null,null,null,0]
["03",null,null,null,null,1,null,null,null,null,null,1,"03",null,null,null,null,null,null,null,null,null,null,0,null,"03",null,null,null,null,1,null,null,null,null,null,1,null,"03",null,null,null,null,null,null,null,null,null,null,0]
["04",null,null,null,null,1,null,null,null,null,null,1,"04",null,null,null,null,1,null,null,null,null,null,1,null,"04",null,null,null,null,null,null,null,null,null,null,0,null,"04",null,null,null,null,null,null,null,null,null,null,0]
["05",null,1,null,null,null,null,null,null,null,null,1,"05",null,null,null,null,null,null,null,null,null,null,0,null,"05",null,1,null,null,null,null,null,null,null,null,1,null,"05",null,null,null,null,null,null,null,null,null,null,0]
["06",null,null,null,null,null,null,null,2,null,null,2,"06",null,null,null,null,null,null,null,null,null,null,0,null,"06",null,null,null,null,null,null,null,2,null,null,2,null,"06",null,null,null,null,null,null,null,null,null,null,0]
["07",null,null,1,null,null,null,null,null,null,null,1,"07",null,null,1,null,null,null,null,null,null,null,1,null,"07",null,null,null,null,null,null,null,null,null,null,0,null,"07",null,null,null,null,null,null,null,null,null,null,0]
["08",null,null,null,null,null,null,null,null,null,null,0,"08",null,null,null,null,null,null,null,null,null,null,0,null,"08",null,null,null,null,null,null,null,null,null,null,0,null,"08",null,null,null,null,null,null,null,null,null,null,0]
["09",1,null,null,null,null,null,null,null,null,null,1,"09",1,null,null,null,null,null,null,null,null,null,1,null,"09",null,null,null,null,null,null,null,null,null,null,0,null,"09",null,null,null,null,null,null,null,null,null,null,0]
["10",null,null,null,null,null,null,null,null,null,null,0,"10",null,null,null,null,null,null,null,null,null,null,0,null,"10",null,null,null,null,null,null,null,null,null,null,0,null,"10",null,null,null,null,null,null,null,null,null,null,0]
["11",null,null,null,1,null,null,null,null,null,1,2,"11",null,null,null,null,null,null,null,null,null,1,1,null,"11",null,null,null,1,null,null,null,null,null,null,1,null,"11",null,null,null,null,null,null,null,null,null,null,0]
["12",null,null,null,null,null,null,null,1,null,null,1,"12",null,null,null,null,null,null,null,null,null,null,0,null,"12",null,null,null,null,null,null,null,1,null,null,1,null,"12",null,null,null,null,null,null,null,null,null,null,0]
["13",null,1,null,null,null,null,null,null,null,null,1,"13",null,1,null,null,null,null,null,null,null,null,1,null,"13",null,null,null,null,null,null,null,null,null,null,0,null,"13",null,null,null,null,null,null,null,null,null,null,0]
["14",null,null,null,null,1,null,null,null,null,null,1,"14",null,null,null,null,null,null,null,null,null,null,0,null,"14",null,null,null,null,null,null,null,null,null,null,0,null,"14",null,null,null,null,1,null,null,null,null,null,1]
["15",null,null,null,null,null,null,null,null,null,null,0,"15",null,null,null,null,null,null,null,null,null,null,0,null,"15",null,null,null,null,null,null,null,null,null,null,0,null,"15",null,null,null,null,null,null,null,null,null,null,0]
["16",1,null,null,null,1,null,null,null,null,null,2,"16",null,null,null,null,1,null,null,null,null,null,1,null,"16",1,null,null,null,null,null,null,null,null,null,1,null,"16",null,null,null,null,null,null,null,null,null,null,0]
["17",1,null,null,null,null,null,null,null,null,null,1,"17",1,null,null,null,null,null,null,null,null,null,1,null,"17",null,null,null,null,null,null,null,null,null,null,0,null,"17",null,null,null,null,null,null,null,null,null,null,0]
["18",null,null,null,null,null,null,null,null,null,null,0,"18",null,null,null,null,null,null,null,null,null,null,0,null,"18",null,null,null,null,null,null,null,null,null,null,0,null,"18",null,null,null,null,null,null,null,null,null,null,0]
["19",null,null,null,null,null,null,null,null,null,null,0,"19",null,null,null,null,null,null,null,null,null,null,0,null,"19",null,null,null,null,null,null,null,null,null,null,0,null,"19",null,null,null,null,null,null,null,null,null,null,0]
["20",null,null,null,null,null,null,1,null,null,null,1,"20",null,null,null,null,null,null,null,null,null,null,0,null,"20",null,null,null,null,null,null,1,null,null,null,1,null,"20",null,null,null,null,null,null,null,null,null,null,0]
["21",null,null,null,null,null,null,null,null,null,null,0,"21",null,null,null,null,null,null,null,null,null,null,0,null,"21",null,null,null,null,null,null,null,null,null,null,0,null,"21",null,null,null,null,null,null,null,null,null,null,0]
["22",null,null,null,null,null,1,1,1,null,null,3,"22",null,null,null,null,null,1,1,null,null,null,2,null,"22",null,null,null,null,null,null,null,null,null,null,0,null,"22",null,null,null,null,null,null,null,1,null,null,1]
["23",null,null,null,null,null,null,null,null,null,null,0,"23",null,null,null,null,null,null,null,null,null,null,0,null,"23",null,null,null,null,null,null,null,null,null,null,0,null,"23",null,null,null,null,null,null,null,null,null,null,0]
["24",null,null,null,null,null,null,1,1,1,null,3,"24",null,null,null,null,null,null,null,null,null,null,0,null,"24",null,null,null,null,null,null,1,1,1,null,3,null,"24",null,null,null,null,null,null,null,null,null,null,0]
["25",null,null,null,null,null,null,null,null,null,null,0,"25",null,null,null,null,null,null,null,null,null,null,0,null,"25",null,null,null,null,null,null,null,null,null,null,0,null,"25",null,null,null,null,null,null,null,null,null,null,0]
["26",null,null,null,null,1,null,null,null,null,1,2,"26",null,null,null,null,null,null,null,null,null,1,1,null,"26",null,null,null,null,1,null,null,null,null,null,1,null,"26",null,null,null,null,null,null,null,null,null,null,0]
["27",1,null,null,null,null,null,null,null,null,null,1,"27",null,null,null,null,null,null,null,null,null,null,0,null,"27",null,null,null,null,null,null,null,null,null,null,0,null,"27",1,null,null,null,null,null,null,null,null,null,1]
["28",null,null,null,null,null,null,1,null,null,1,2,"28",null,null,null,null,null,null,null,null,null,1,1,null,"28",null,null,null,null,null,null,1,null,null,null,1,null,"28",null,null,null,null,null,null,null,null,null,null,0]
["29",null,null,null,null,null,null,null,null,null,null,0,"29",null,null,null,null,null,null,null,null,null,null,0,null,"29",null,null,null,null,null,null,null,null,null,null,0,null,"29",null,null,null,null,null,null,null,null,null,null,0]
["30",null,null,null,null,null,null,1,null,null,null,1,"30",null,null,null,null,null,null,1,null,null,null,1,null,"30",null,null,null,null,null,null,null,null,null,null,0,null,"30",null,null,null,null,null,null,null,null,null,null,0]
["31",null,null,null,null,null,null,null,null,null,null,0,"31",null,null,null,null,null,null,null,null,null,null,0,null,"31",null,null,null,null,null,null,null,null,null,null,0,null,"31",null,null,null,null,null,null,null,null,null,null,0]
["32",null,null,null,null,null,null,null,null,null,null,0,"32",null,null,null,null,null,null,null,null,null,null,0,null,"32",null,null,null,null,null,null,null,null,null,null,0,null,"32",null,null,null,null,null,null,null,null,null,null,0]
["33",null,null,null,1,null,null,null,null,null,null,1,"33",null,null,null,null,null,null,null,null,null,null,0,null,"33",null,null,null,null,null,null,null,null,null,null,0,null,"33",null,null,null,1,null,null,null,null,null,null,1]
["34",null,null,null,null,null,null,null,null,null,1,1,"34",null,null,null,null,null,null,null,null,null,1,1,null,"34",null,null,null,null,null,null,null,null,null,null,0,null,"34",null,null,null,null,null,null,null,null,null,null,0]
["35",null,null,null,null,null,null,null,null,null,null,0,"35",null,null,null,null,null,null,null,null,null,null,0,null,"35",null,null,null,null,null,null,null,null,null,null,0,null,"35",null,null,null,null,null,null,null,null,null,null,0]
["36",null,null,null,null,null,null,null,null,null,null,0,"36",null,null,null,null,null,null,null,null,null,null,0,null,"36",null,null,null,null,null,null,null,null,null,null,0,null,"36",null,null,null,null,null,null,null,null,null,null,0]
["37",null,null,null,1,null,null,null,null,null,1,2,"37",null,null,null,null,null,null,null,null,null,1,1,null,"37",null,null,null,1,null,null,null,null,null,null,1,null,"37",null,null,null,null,null,null,null,null,null,null,0]
["38",null,null,null,null,null,null,null,null,null,null,0,"38",null,null,null,null,null,null,null,null,null,null,0,null,"38",null,null,null,null,null,null,null,null,null,null,0,null,"38",null,null,null,null,null,null,null,null,null,null,0]
["39",null,null,1,null,1,null,null,1,null,null,3,"39",null,null,1,null,1,null,null,null,null,null,2,null,"39",null,null,null,null,null,null,null,1,null,null,1,null,"39",null,null,null,null,null,null,null,null,null,null,0]
["40",1,null,null,null,null,null,null,null,null,null,1,"40",null,null,null,null,null,null,null,null,null,null,0,null,"40",1,null,null,null,null,null,null,null,null,null,1,null,"40",null,null,null,null,null,null,null,null,null,null,0]
["41",null,null,null,null,null,null,null,null,null,null,0,"41",null,null,null,null,null,null,null,null,null,null,0,null,"41",null,null,null,null,null,null,null,null,null,null,0,null,"41",null,null,null,null,null,null,null,null,null,null,0]
["42",null,null,null,null,null,null,1,null,null,null,1,"42",null,null,null,null,null,null,1,null,null,null,1,null,"42",null,null,null,null,null,null,null,null,null,null,0,null,"42",null,null,null,null,null,null,null,null,null,null,0]
["43",null,null,null,null,null,null,null,null,null,null,0,"43",null,null,null,null,null,null,null,null,null,null,0,null,"43",null,null,null,null,null,null,null,null,null,null,0,null,"43",null,null,null,null,null,null,null,null,null,null,0]
["44",1,null,1,null,null,null,null,null,null,null,2,"44",null,null,null,null,null,null,null,null,null,null,0,null,"44",1,null,null,null,null,null,null,null,null,null,1,null,"44",null,null,1,null,null,null,null,null,null,null,1]
["45",null,null,null,null,null,null,null,1,null,null,1,"45",null,null,null,null,null,null,null,1,null,null,1,null,"45",null,null,null,null,null,null,null,null,null,null,0,null,"45",null,null,null,null,null,null,null,null,null,null,0]
["46",null,null,null,null,1,null,null,null,null,null,1,"46",null,null,null,null,1,null,null,null,null,null,1,null,"46",null,null,null,null,null,null,null,null,null,null,0,null,"46",null,null,null,null,null,null,null,null,null,null,0]
["47",null,null,null,null,null,null,null,null,null,null,0,"47",null,null,null,null,null,null,null,null,null,null,0,null,"47",null,null,null,null,null,null,null,null,null,null,0,null,"47",null,null,null,null,null,null,null,null,null,null,0]
["48",null,null,1,null,1,null,null,null,null,null,2,"48",null,null,1,null,null,null,null,null,null,null,1,null,"48",null,null,null,null,1,null,null,null,null,null,1,null,"48",null,null,null,null,null,null,null,null,null,null,0]
["49",null,null,null,null,null,null,null,null,null,null,0,"49",null,null,null,null,null,null,null,null,null,null,0,null,"49",null,null,null,null,null,null,null,null,null,null,0,null,"49",null,null,null,null,null,null,null,null,null,null,0]
["50",null,null,null,null,null,null,null,null,null,null,0,"50",null,null,null,null,null,null,null,null,null,null,0,null,"50",null,null,null,null,null,null,null,null,null,null,0,null,"50",null,null,null,null,null,null,null,null,null,null,0]
["51",null,null,null,2,null,null,null,null,null,1,3,"51",null,null,null,null,null,null,null,null,null,null,0,null,"51",null,null,null,2,null,null,null,null,null,1,3,null,"51",null,null,null,null,null,null,null,null,null,null,0]
["52",null,null,null,null,null,null,null,null,1,null,1,"52",null,null,null,null,null,null,null,null,1,null,1,null,"52",null,null,null,null,null,null,null,null,null,null,0,null,"52",null,null,null,null,null,null,null,null,null,null,0]
["53",null,null,null,null,null,null,null,null,null,null,0,"53",null,null,null,null,null,null,null,null,null,null,0,null,"53",null,null,null,null,null,null,null,null,null,null,0,null,"53",null,null,null,null,null,null,null,null,null,null,0]
["54",null,null,null,null,null,null,null,null,1,null,1,"54",null,null,null,null,null,null,null,null,1,null,1,null,"54",null,null,null,null,null,null,null,null,null,null,0,null,"54",null,null,null,null,null,null,null,null,null,null,0]
["55",null,null,null,null,null,null,null,null,null,null,0,"55",null,null,null,null,null,null,null,null,null,null,0,null,"55",null,null,null,null,null,null,null,null,null,null,0,null,"55",null,null,null,null,null,null,null,null,null,null,0]
["56",null,null,null,null,null,null,null,null,null,null,0,"56",null,null,null,null,null,null,null,null,null,null,0,null,"56",null,null,null,null,null,null,null,null,null,null,0,null,"56",null,null,null,null,null,null,null,null,null,null,0]
["57",null,null,null,null,null,null,null,null,null,null,0,"57",null,null,null,null,null,null,null,null,null,null,0,null,"57",null,null,null,null,null,null,null,null,null,null,0,null,"57",null,null,null,null,null,null,null,null,null,null,0]
["58",null,1,null,null,null,null,null,null,null,null,1,"58",null,null,null,null,null,null,null,null,null,null,0,null,"58",null,1,null,null,null,null,null,null,null,null,1,null,"58",null,null,null,null,null,null,null,null,null,null,0]
["59",null,null,null,1,null,null,null,null,null,null,1,"59",null,null,null,null,null,null,null,null,null,null,0,null,"59",null,null,null,1,null,null,null,null,null,null,1,null,"59",null,null,null,null,null,null,null,null,null,null,0]
["60",null,null,null,null,null,null,null,null,null,null,0,"60",null,null,null,null,null,null,null,null,null,null,0,null,"60",null,null,null,null,null,null,null,null,null,null,0,null,"60",null,null,null,null,null,null,null,null,null,null,0]
["61",null,null,null,null,null,null,null,null,null,null,0,"61",null,null,null,null,null,null,null,null,null,null,0,null,"61",null,null,null,null,null,null,null,null,null,null,0,null,"61",null,null,null,null,null,null,null,null,null,null,0]
["62",null,null,null,null,null,null,null,null,null,null,0,"62",null,null,null,null,null,null,null,null,null,null,0,null,"62",null,null,null,null,null,null,null,null,null,null,0,null,"62",null,null,null,null,null,null,null,null,null,null,0]
["63",null,null,null,1,null,null,null,null,null,null,1,"63",null,null,null,1,null,null,null,null,null,null,1,null,"63",null,null,null,null,null,null,null,null,null,null,0,null,"63",null,null,null,null,null,null,null,null,null,null,0]
["64",null,null,null,null,1,null,null,null,null,null,1,"64",null,null,null,null,1,null,null,null,null,null,1,null,"64",null,null,null,null,null,null,null,null,null,null,0,null,"64",null,null,null,null,null,null,null,null,null,null,0]
["65",null,null,null,null,null,null,null,null,null,null,{"$f":"SUM(B69:K69)","v":0},"65",null,null,null,null,null,null,null,null,null,null,{"$f":"SUM(N69:W69)","v":0},null,"65",null,null,null,null,null,null,null,null,null,null,{"$f":"SUM(AA69:AJ69)","v":0},null,"65",null,null,null,null,null,null,null,null,null,null,{"$f":"SUM(AN69:AW69)","v":0}]
["66",null,1,null,null,null,null,null,null,null,null,1,"66",null,1,null,null,null,null,null,null,null,null,1,null,"66",null,null,null,null,null,null,null,null,null,null,0,null,"66",null,null,null,null,null,null,null,null,null,null,0]
["67",null,null,null,null,null,null,null,null,1,null,1,"67",null,null,null,null,null,null,null,null,null,null,0,null,"67",null,null,null,null,null,null,null,null,null,null,0,null,"67",null,null,null,null,null,null,null,null,1,null,1]
["68",null,null,null,null,null,null,null,null,null,null,0,"68",null,null,null,null,null,null,null,null,null,null,0,null,"68",null,null,null,null,null,null,null,null,null,null,0,null,"68",null,null,null,null,null,null,null,null,null,null,0]
["69",null,null,null,null,null,null,null,null,null,null,0,"69",null,null,null,null,null,null,null,null,null,null,0,null,"69",null,null,null,null,null,null,null,null,null,null,0,null,"69",null,null,null,null,null,null,null,null,null,null,0]
["70",null,1,null,null,null,null,null,null,null,null,1,"70",null,null,null,null,null,null,null,null,null,null,0,null,"70",null,1,null,null,null,null,null,null,null,null,1,null,"70",null,null,null,null,null,null,null,null,null,null,0]
["71",null,null,null,null,null,null,null,null,1,null,1,"71",null,null,null,null,null,null,null,null,null,null,0,null,"71",null,null,null,null,null,null,null,null,1,null,1,null,"71",null,null,null,null,null,null,null,null,null,null,0]
["72",null,null,null,null,null,null,null,null,null,null,0,"72",null,null,null,null,null,null,null,null,null,null,0,null,"72",null,null,null,null,null,null,null,null,null,null,0,null,"72",null,null,null,null,null,null,null,null,null,null,0]
["73",null,null,null,null,null,null,null,null,null,null,0,"73",null,null,null,null,null,null,null,null,null,null,0,null,"73",null,null,null,null,null,null,null,null,null,null,0,null,"73",null,null,null,null,null,null,null,null,null,null,0]
["74",null,null,null,null,null,null,null,null,null,null,{"$f":"SUM(B78:K78)","v":0},"74",null,null,null,null,null,null,null,null,null,null,{"$f":"SUM(N78:W78)","v":0},null,"74",null,null,null,null,null,null,null,null,null,null,{"$f":"SUM(AA78:AJ78)","v":0},null,"74",null,null,null,null,null,null,null,null,null,null,{"$f":"SUM(AN78:AW78)","v":0}]
["75",1,null,null,null,null,null,null,null,null,null,{"$f":"SUM(B79:K79)","v":1},"75",1,null,null,null,null,null,null,null,null,null,1,null,"75",null,null,null,null,null,null,null,null,null,null,{"$f":"SUM(AA79:AJ79)","v":0},null,"75",null,null,null,null,null,null,null,null,null,null,{"$f":"SUM(AN79:AW79)","v":0}]
["76",null,null,1,null,null,null,null,1,null,null,2,"76",null,null,null,null,null,null,null,1,null,null,1,null,"76",null,null,1,null,null,null,null,null,null,null,1,null,"76",null,null,null,null,null,null,null,null,null,null,0]
["77",null,1,null,null,null,null,null,null,1,null,2,"77",null,1,null,null,null,null,null,null,null,null,1,null,"77",null,null,null,null,null,null,null,null,1,null,1,null,"77",null,null,null,null,null,null,null,null,null,null,0]
["78",null,null,1,null,null,null,null,1,null,null,2,"78",null,null,null,null,null,null,null,1,null,null,1,null,"78",null,null,1,null,null,null,null,null,null,null,1,null,"78",null,null,null,null,null,null,null,null,null,null,0]
["79",null,null,null,null,null,null,null,null,null,null,0,"79",null,null,null,null,null,null,null,null,null,null,0,null,"79",null,null,null,null,null,null,null,null,null,null,0,null,"79",null,null,null,null,null,null,null,null,null,null,0]
["80",null,null,null,null,null,null,null,null,null,null,0,"80",null,null,null,null,null,null,null,null,null,null,0,null,"80",null,null,null,null,null,null,null,null,null,null,0,null,"80",null,null,null,null,null,null,null,null,null,null,0]
["81",null,null,null,null,null,null,null,null,null,null,0,"81",null,null,null,null,null,null,null,null,null,null,0,null,"81",null,null,null,null,null,null,null,null,null,null,0,null,"81",null,null,null,null,null,null,null,null,null,null,0]
["82",null,null,null,null,null,null,1,null,null,null,1,"82",null,null,null,null,null,null,1,null,null,null,1,null,"82",null,null,null,null,null,null,null,null,null,null,0,null,"82",null,null,null,null,null,null,null,null,null,null,0]
["83",null,null,null,null,null,null,null,null,null,null,0,"83",null,null,null,null,null,null,null,null,null,null,0,null,"83",null,null,null,null,null,null,null,null,null,null,0,null,"83",null,null,null,null,null,null,null,null,null,null,0]
["84",null,null,null,null,null,null,null,null,null,null,0,"84",null,null,null,null,null,null,null,null,null,null,0,null,"84",null,null,null,null,null,null,null,null,null,null,0,null,"84",null,null,null,null,null,null,null,null,null,null,0]
["85",null,null,null,null,null,null,null,null,null,null,0,"85",null,null,null,null,null,null,null,null,null,null,0,null,"85",null,null,null,null,null,null,null,null,null,null,0,null,"85",null,null,null,null,null,null,null,null,null,null,0]
["86",null,null,null,null,1,null,null,null,null,null,1,"86",null,null,null,null,null,null,null,null,null,null,0,null,"86",null,null,null,null,1,null,null,null,null,null,1,null,"86",null,null,null,null,null,null,null,null,null,null,0]
["87",null,null,null,null,null,null,null,null,null,null,0,"87",null,null,null,null,null,null,null,null,null,null,0,null,"87",null,null,null,null,null,null,null,null,null,null,0,null,"87",null,null,null,null,null,null,null,null,null,null,0]
["88",null,1,null,null,null,null,null,null,null,null,1,"88",null,null,null,null,null,null,null,null,null,null,0,null,"88",null,null,null,null,null,null,null,null,null,null,0,null,"88",null,1,null,null,null,null,null,null,null,null,1]
["89",null,null,null,null,null,null,null,null,null,null,0,"89",null,null,null,null,null,null,null,null,null,null,0,null,"89",null,null,null,null,null,null,null,null,null,null,0,null,"89",null,null,null,null,null,null,null,null,null,null,0]
["90",null,null,null,null,null,null,null,null,null,null,0,"90",null,null,null,null,null,null,null,null,null,null,0,null,"90",null,null,null,null,null,null,null,null,null,null,0,null,"90",null,null,null,null,null,null,null,null,null,null,0]
["91",null,null,null,null,1,null,null,null,null,null,1,"91",null,null,null,null,null,null,null,null,null,null,0,null,"91",null,null,null,null,null,null,null,null,null,null,0,null,"91",null,null,null,null,1,null,null,null,null,null,1]
["92",null,null,null,null,null,null,null,null,null,null,0,"92",null,null,null,null,null,null,null,null,null,null,0,null,"92",null,null,null,null,null,null,null,null,null,null,0,null,"92",null,null,null,null,null,null,null,null,null,null,0]
["93",null,null,null,null,1,1,null,null,null,null,2,"93",null,null,null,null,1,1,null,null,null,null,2,null,"93",null,null,null,null,null,null,null,null,null,null,0,null,"93",null,null,null,null,null,null,null,null,null,null,0]
["94",null,null,null,null,null,null,null,null,null,null,0,"94",null,null,null,null,null,null,null,null,null,null,0,null,"94",null,null,null,null,null,null,null,null,null,null,0,null,"94",null,null,null,null,null,null,null,null,null,null,0]
["95",null,null,null,null,null,null,null,null,null,null,0,"95",null,null,null,null,null,null,null,null,null,null,0,null,"95",null,null,null,null,null,null,null,null,null,null,0,null,"95",null,null,null,null,null,null,null,null,null,null,0]
["96",null,null,null,null,null,null,null,null,null,null,0,"96",null,null,null,null,null,null,null,null,null,null,0,null,"96",null,null,null,null,null,null,null,null,null,null,0,null,"96",null,null,null,null,null,null,null,null,null,null,0]
["97",null,1,null,null,null,2,null,null,null,null,3,"97",null,1,null,null,null,1,null,null,null,null,2,null,"97",null,null,null,null,null,null,null,null,null,null,0,null,"97",null,null,null,null,null,1,null,null,null,null,1]
["98",null,1,null,null,1,null,null,null,null,null,2,"98",null,1,null,null,1,null,null,null,null,null,2,null,"98",null,null,null,null,null,null,null,null,null,null,0,null,"98",null,null,null,null,null,null,null,null,null,null,0]
["99",null,null,null,null,null,null,1,null,null,null,1,"99",null,null,null,null,null,null,null,null,null,null,0,null,"99",null,null,null,null,null,null,1,null,null,null,1,null,"99",null,null,null,null,null,null,null,null,null,null,0]
["total",{"$f":"SUM(B4:B103)","v":8},{"$f":"SUM(C4:C103)","v":9},8,8,14,4,9,9,6,6,81,"total",{"$f":"SUM(N4:N103)","v":4},{"$f":"SUM(O4:O103)","v":5},4,1,7,3,4,3,2,5,38,null,"total",{"$f":"SUM(AA4:AA103)","v":3},{"$f":"SUM(AB4:AB103)","v":3},3,6,5,0,5,5,3,1,34,null,"total",{"$f":"SUM(AN4:AN103)","v":1},{"$f":"SUM(AO4:AO103)","v":1},1,1,2,1,0,1,1,0,9]

{"sheet":"pares puesto","index":2,"n_rows":36,"n_cols":14,"rows_kept":36,"cut":false,"hidden":false,"merged":[]}
[null,null,null,null,null,null,"semana"]
["11XX","XX11","1XX1","X11X","1X1X","X1X1",1,"11XX","XX11","1XX1","X11X","1X1X","X1X1",11]
[3,null,null,0,6]
[null,null,null,null,1]
["11XX","XX11","1XX1","X11X","1X1X","X1X1",2,"11XX","XX11","1XX1","X11X","1X1X","X1X1",12]
[2,7,7,9,3,2]
[null,5,7]
[]
["11XX","XX11","1XX1","X11X","1X1X","X1X1",3,"11XX","XX11","1XX1","X11X","1X1X","X1X1",13]
[null,4,9,4]
[null,3]
["11XX","XX11","1XX1","X11X","1X1X","X1X1",4,"11XX","XX11","1XX1","X11X","1X1X","X1X1",14]
[null,0,6,4,3,2]
[null,null,8,null,1]
[null,null,7,null,2]
[null,null,null,null,7]
["11XX","XX11","1XX1","X11X","1X1X","X1X1",5,"11XX","XX11","1XX1","X11X","1X1X","X1X1",15]
[8,9,null,7,1,1]
[3,null,null,3,6]
[1]
["11XX","XX11","1XX1","X11X","1X1X","X1X1",6,"11XX","XX11","1XX1","X11X","1X1X","X1X1",16]
[]
[]
["11XX","XX11","1XX1","X11X","1X1X","X1X1",7,"11XX","XX11","1XX1","X11X","1X1X","X1X1",17]
[]
[]
["11XX","XX11","1XX1","X11X","1X1X","X1X1",8,"11XX","XX11","1XX1","X11X","1X1X","X1X1",18]
[]
[]
[]
["11XX","XX11","1XX1","X11X","1X1X","X1X1",9,"11XX","XX11","1XX1","X11X","1X1X","X1X1",19]
[]
[]
[]
[]
["11XX","XX11","1XX1","X11X","1X1X","X1X1",10,"11XX","XX11","1XX1","X11X","1X1X","X1X1",20]

{"sheet":"otra hoja","index":3,"n_rows":3,"n_cols":10,"rows_kept":3,"cut":false,"hidden":false,"merged":[]}
[0,1,2,3,4,5,6,7,8,9]
["1090","1214","0122","9339","4545","5725",null,"3757","0588","9339"]
[null,"3171",null,null,null,"4545"]

{"sheet":"Hoja3","index":4,"n_rows":3,"n_cols":10,"rows_kept":3,"cut":false,"hidden":false,"merged":[]}
[0,1,2,3,4,5,6,7,8,9]
[null,null,null,null,null,null,null,null,null,"33"]
[null,null,null,null,null,null,null,null,null,""]